lending/lending_fUSD_20241113
["ID","MTS","AMOUNT","RATE_DAILY","PERIOD"]
[342120755,1731475839714,-1000.0,0.00014999,2]
[342120756,1731475840013,-531.72,0.00014999,2]
[342120757,1731475840028,-12241.63677984,0.00015,2]
[342120758,1731475840036,-1648257.71422134,0.00015,2]
[342120759,1731475840046,-566772.11663237,0.00015,2]
[342120760,1731475840102,-4009.4908,0.00015,2]
[342120780,1731475841458,-1322.82192314,0.00015,2]
[342120781,1731475841478,-678.68086752,0.00015,2]
[342120782,1731475841638,-34942.68329344,0.00015,2]
[342120783,1731475841787,-515.34,0.00015,2]
[342120787,1731475843954,-871.95386234,0.0001499,2]
[342120788,1731475844145,-219.04613766,0.0001499,2]
[342120789,1731475844155,-311000.56816338,0.00015,2]
[342120790,1731475844383,-259399.60492093,0.00015,2]
[342120791,1731475844395,-10843.94419126,0.00015,2]
[342120792,1731475844405,-66499.74798571,0.00015,2]
[342120793,1731475846655,-3293.35,0.00015,2]
[342120794,1731475846664,-1838.94865,0.00015,2]
[342120796,1731475993629,500.0,0.00024687,120]
[342120797,1731475993975,500.0,0.00026287,120]
[342120798,1731475997266,336.700332,0.00024687,120]
[342120799,1731476028666,1000.0,0.0002,120]
[342120800,1731476175091,1000.0,0.00027,120]
[342120801,1731476185463,200.0,0.00027,60]
[342120803,1731476246005,3000.0,0.00027,60]
[342120806,1731476376076,2950.0,0.00027,60]
[342120811,1731476472310,800.0,0.00026986,120]
[342120812,1731476488375,554.69,0.00011917,2]
[342120813,1731476542217,1450.0,0.00012,2]
[342120814,1731476554511,682.0,0.00027,60]
[342120816,1731476575424,6639.53353557,0.00027,60]
[342120817,1731476594732,396.320301,0.00024801,120]
[342120818,1731476598832,917.0,0.00027,60]
[342120819,1731476601536,500.0,0.00026235,120]
[342120820,1731476605071,8794.71894872,0.000269,120]
[342120821,1731476616416,932.04535386,0.00027,60]
[342120823,1731476895224,2117.35,0.00027,60]
[342120834,1731477031860,-278.91544908,0.00012437,2]
[342120835,1731477031938,-527.90194292,0.00012437,2]
[342120836,1731477031948,-259.04805708,0.00013668,2]
[342120837,1731477032159,-13.79194292,0.00013668,2]
[342120838,1731477032169,-150.0,0.00013668,2]
[342120839,1731477032178,-370.25,0.00013683,2]
[342120840,1731477032188,-1000.0,0.00013687,2]
[342120841,1731477032198,-150.0,0.00013691,2]
[342120842,1731477032207,-166.59,0.00013726,2]
[342120855,1731477032467,-200.0,0.00013743,2]
[342120861,1731477032576,-150.0,0.00013748,2]
[342120863,1731477032586,-200.0,0.00013748,2]
[342120865,1731477032595,-171.98,0.00013758,2]
[342120867,1731477032608,-250.0,0.00013758,2]
[342120869,1731477032618,-334.0,0.00013769,2]
[342120871,1731477032627,-250.0,0.00013769,2]
[342120873,1731477032636,-620.05,0.00013769,2]
[342120875,1731477032645,-1194.97,0.00013769,2]
[342120877,1731477032654,-14028.25809066,0.00013769,2]
[342120879,1731477032666,-3256.92190934,0.00013769,2]
[342120881,1731477032675,-999.99,0.00013769,2]
[342120883,1731477032684,-641.1495,0.00013855,2]
[342120885,1731477032694,-527.16,0.00013858,2]
[342120887,1731477032703,-250.0,0.00013863,2]
[342120889,1731477032712,-1500.0,0.00014,2]
[342120891,1731477032722,-554.69,0.00014181,2]
[342120893,1731477032731,-171.98,0.00014445,2]
[342120895,1731477032740,-166.41,0.00014449,2]
[342120897,1731477032749,-165.693,0.0001448,2]
[342120899,1731477032758,-417.53397268,0.00014534,2]
[342120901,1731477032767,-166.99,0.00014581,2]
[342120903,1731477032776,-150.0,0.000147,2]
[342120905,1731477032786,-31505.0,0.00014701,2]
[342120907,1731477032795,-150.0,0.00014766,2]
[342120909,1731477032804,-150.0,0.00014783,2]
[342120911,1731477032813,-150.0,0.00014794,2]
[342120913,1731477032829,-150.0,0.00014807,2]
[342120915,1731477032839,-1235.37054029,0.00014849,2]
[342120917,1731477032848,-395.02367,0.0001485,2]
[342120919,1731477032858,-150.0,0.00014871,2]
[342120922,1731477032868,-500.0,0.0001488,2]
[342120924,1731477032879,-150.07697436,0.00014893,2]
[342120926,1731477032888,-274.20260721,0.00014893,2]
[342120928,1731477032897,-150.07697428,0.00014894,2]
[342120930,1731477032907,-274.20260718,0.00014894,2]
[342120931,1731477032916,-150.07697428,0.00014895,2]
[342120933,1731477032925,-274.20260718,0.00014895,2]
[342120935,1731477032934,-150.07697428,0.00014896,2]
[342120937,1731477032943,-274.20260718,0.00014896,2]
[342120939,1731477032952,-150.07697428,0.00014897,2]
[342120941,1731477032961,-274.20260718,0.00014897,2]
[342120943,1731477032970,-150.07697428,0.00014897,2]
[342120945,1731477032979,-274.20260718,0.00014898,2]
[342120947,1731477032989,-150.07697428,0.00014898,2]
[342120949,1731477033002,-274.20260718,0.00014899,2]
[342120951,1731477033011,-150.07697428,0.00014899,2]
[342120953,1731477033020,-2012.0279,0.000149,2]
[342120955,1731477033029,-150.07697428,0.000149,2]
[342120957,1731477033040,-274.20260718,0.000149,2]
[342120959,1731477033049,-160.0,0.00014961,2]
[342120961,1731477033058,-500.0,0.00014973,2]
[342120963,1731477033071,-7176.07018319,0.00014988,2]
[342120965,1731477033082,-1423.17,0.00014989,2]
[342120967,1731477033092,-1423.17,0.00014989,2]
[342120969,1731477033103,-182.83347787,0.0001499,2]
[342120971,1731477033113,-10359.32237897,0.0001499,2]
[342120974,1731477033126,-600.80231563,0.0001499,2]
[342121255,1731477038335,-1423.17,0.00014989,2]
[342121256,1731477038346,-1423.17,0.00014989,2]
[342121257,1731477038355,-1423.17,0.00014989,2]
[342121258,1731477038364,-1423.17,0.00014989,2]
[342121259,1731477038374,-1423.17,0.00014989,2]
[342121260,1731477038383,-1423.17,0.00014989,2]
[342121261,1731477038392,-1423.17,0.00014989,2]
[342121262,1731477038402,-1423.17,0.00014989,2]
[342121263,1731477038411,-1423.17,0.00014989,2]
[342121264,1731477038420,-1423.17,0.00014989,2]
[342121266,1731477038429,-1423.17,0.00014989,2]
[342121267,1731477038438,-1423.17,0.00014989,2]
[342121268,1731477038447,-1423.17,0.00014989,2]
[342121269,1731477038456,-1423.17,0.00014989,2]
[342121270,1731477038464,-1423.17,0.00014989,2]
[342121272,1731477038474,-1423.17,0.00014989,2]
[342121274,1731477038483,-1423.17,0.00014989,2]
[342121276,1731477038492,-1423.17,0.00014989,2]
[342121278,1731477038501,-1423.17,0.00014989,2]
[342121280,1731477038511,-239039.8753054,0.0001499,2]
[342121282,1731477038520,-150.0,0.00014993,2]
[342121284,1731477038529,-13631.0,0.00014993,2]
[342121286,1731477038538,-1159.0,0.00014993,2]
[342121288,1731477038547,-219.046,0.00014993,2]
[342121290,1731477038556,-606.424,0.00014997,2]
[342121292,1731477038566,-150.0,0.00014999,2]
[342121294,1731477038580,-271.76472322,0.00014999,2]
[342121296,1731477038589,-238.92767656,0.00014999,2]
[342121298,1731477038599,-1711.42873576,0.00014999,2]
[342121300,1731477038609,-412.55033761,0.00014999,2]
[342121302,1731477038619,-500.0,0.00014999,2]
[342121304,1731477038629,-500.0,0.00014999,2]
[342121306,1731477038638,-1153.93,0.00014999,2]
[342121308,1731477038647,-293775.07037994,0.00015,2]
[342121310,1731477038657,-2729280.14932777,0.00015,2]
[342121312,1731477038669,-626.508,0.00015,2]
[342121321,1731477038745,-774.88142984,0.00015,2]
[342121324,1731477038763,-370.3273716,0.00015,2]
[342121326,1731477038774,-7694.00722917,0.00015,2]
[342121361,1731477040180,-1423.17,0.00014989,2]
[342121362,1731477040190,-1423.17,0.00014989,2]
[342121363,1731477040199,-1423.34201625,0.00014989,2]
[342121364,1731477040209,-137557.38308984,0.00015,2]
[342121365,1731477040221,-1593.75750387,0.00015,2]
[342121366,1731477040238,-649.84901329,0.00015,2]
[342121367,1731477040259,-544.34473846,0.00015,2]
[342121368,1731477040272,-4465.35320515,0.00015,2]
[342121369,1731477040284,-807.664508,0.00015,2]
[342121370,1731477040302,-1466.28995734,0.00015,2]
[342121371,1731477040431,-456.45211275,0.00015,2]
[342121372,1731477040443,-4831.43672794,0.00015,2]
[342121373,1731477040455,-3921.62591642,0.00015,2]
[342121374,1731477040482,-2537.03952318,0.00015,2]
[342121375,1731477040495,-376.58993158,0.00015,2]
[342121376,1731477040508,-2835.104616,0.00015,2]
[342121377,1731477040529,-852.22895866,0.00015,2]
[342121378,1731477040588,-662.70634916,0.00015,2]
[342121379,1731477040600,-630.25841339,0.00015,2]
[342121380,1731477040958,-550.50093868,0.00015,2]
[342121383,1731477043020,-855.71436788,0.00014999,2]
[342121384,1731477043030,-11864.19195589,0.00015,2]
[342121385,1731477043056,-377.11693109,0.00015,2]
[342121386,1731477043067,-2702.5876545,0.00015,2]
[342121387,1731477043103,-12944.82150775,0.00015,2]
[342121388,1731477043115,-18586.67849225,0.00015,2]
[342121389,1731477043166,-93971.51207736,0.00015,2]
[342121390,1731477043208,-6306.3,0.00015,2]
[342121392,1731477043219,-3035.99681198,0.00015,2]
[342121399,1731477045962,-3213.95000088,0.00015,2]
[342121400,1731477046112,-6302.80000002,0.00015,2]
[342121401,1731477046124,-399.67107369,0.00015,2]
[342121404,1731477133103,500.0,0.00027,60]
[342121406,1731477148009,500.0,0.00027,60]
[342121407,1731477155814,500.0,0.00027,60]
[342121408,1731477166687,500.0,0.00027,60]
[342121409,1731477178413,596.0,0.00027,120]
[342121410,1731477185180,-1372.39557787,0.00014743,2]
[342121411,1731477185204,-150.0,0.00014764,2]
[342121412,1731477185226,-150.0,0.00014809,2]
[342121413,1731477185249,-150.0,0.00014832,2]
[342121414,1731477185273,-150.0,0.00014856,2]
[342121415,1731477185294,-300.0,0.00014889,2]
[342121416,1731477185316,-35789.0419,0.0001489,2]
[342121417,1731477185337,-4926.2493,0.0001489,2]
[342121418,1731477185358,-32790.1392,0.0001489,2]
[342121419,1731477185379,-2328.17402213,0.0001489,2]
[342121420,1731477188793,557.352429,0.00027,60]
[342121421,1731477191375,500.0,0.00027,120]
[342121422,1731477199670,500.0,0.00025459,120]
[342121423,1731477199967,500.0,0.00026973,120]
[342121425,1731477362370,522.11,0.00012211,2]
[342121430,1731477800044,500.0,0.00025655,120]
[342121431,1731477820773,-150.0,0.00013697,2]
[342121432,1731477820795,-628.09831,0.00013698,2]
[342121433,1731477820817,-628.09831,0.00013698,2]
[342121434,1731477820840,-628.09831,0.00013698,2]
[342121435,1731477820861,-628.09831,0.00013698,2]
[342121436,1731477820883,-628.09831,0.00013698,2]
[342121437,1731477820905,-628.09831,0.00013698,2]
[342121438,1731477820929,-628.09831,0.00013698,2]
[342121439,1731477820954,-628.09831,0.00013698,2]
[342121440,1731477820976,-628.09831,0.00013698,2]
[342121441,1731477820998,-628.09831,0.00013698,2]
[342121442,1731477821021,-628.09831,0.00013698,2]
[342121443,1731477821045,-628.09831,0.00013698,2]
[342121444,1731477821068,-628.09831,0.00013698,2]
[342121445,1731477821090,-628.09831,0.00013698,2]
[342121446,1731477821112,-628.09831,0.00013698,2]
[342121447,1731477821133,-628.09831,0.00013698,2]
[342121448,1731477821156,-628.09831,0.00013698,2]
[342121449,1731477821181,-628.09831,0.00013698,2]
[342121450,1731477821207,-628.09831,0.00013698,2]
[342121451,1731477821228,-628.09831,0.00013698,2]
[342121452,1731477821253,-628.09831,0.00013698,2]
[342121453,1731477821274,-628.09831,0.00013698,2]
[342121454,1731477821297,-628.09831,0.00013698,2]
[342121455,1731477821320,-628.09831,0.00013698,2]
[342121456,1731477821343,-628.09831,0.00013698,2]
[342121457,1731477821365,-238.11952,0.00013698,2]
[342121458,1731477821386,-200.0,0.00013786,2]
[342121459,1731477821408,-658.75,0.00013813,2]
[342121460,1731477821432,-492.19,0.0001393,2]
[342121461,1731477821456,-160.0,0.00013956,2]
[342121462,1731477821478,-250.0,0.00013958,2]
[342121463,1731477821500,-148.48273,0.00013978,2]
[342121464,1731477840414,-151.51727,0.00013978,2]
[342121465,1731477840440,-166.47,0.00014011,2]
[342121466,1731477840468,-244.24,0.00014056,2]
[342121467,1731477840491,-176.28,0.00014056,2]
[342121468,1731477840514,-250.0,0.00014104,2]
[342121469,1731477840544,-150.0,0.00014128,2]
[342121470,1731477840569,-167.0,0.00014307,2]
[342121471,1731477840593,-150.0,0.0001444,2]
[342121472,1731477840617,-250.0,0.00014452,2]
[342121473,1731477840641,-522.11,0.00014474,2]
[342121474,1731477840666,-417.53397268,0.00014525,2]
[342121475,1731477840693,-150.0,0.00014747,2]
[342121476,1731477840716,-834.79,0.00014759,2]
[342121477,1731477840740,-511.81,0.00014759,2]
[342121478,1731477840765,-952.23,0.00014759,2]
[342121479,1731477840788,-1501.61,0.00014759,2]
[342121480,1731477840811,-176.28,0.00014759,2]
[342121481,1731477840836,-150.0,0.00014763,2]
[342121482,1731477840861,-199.0,0.0001482,2]
[342121483,1731477840887,-150.0,0.00014845,2]
[342121484,1731477840911,-628.09831,0.00014876,2]
[342121485,1731477840941,-150.0,0.00014886,2]
[342121486,1731477840967,-150.0,0.00014888,2]
[342121487,1731477840991,-9801.03044732,0.0001489,2]
[342121491,1731478232021,-244.24,0.00013958,2]
[342121492,1731478232031,-150.0,0.00014008,2]
[342121493,1731478232041,-250.0,0.00014063,2]
[342121494,1731478232050,-131.63557787,0.00014164,2]
[342121495,1731478232062,-868.36442213,0.00014164,2]
[342121496,1731478232071,-669.97,0.00014193,2]
[342121497,1731478232080,-2000.0,0.000142,2]
[342121498,1731478232090,-14680.34020963,0.00014728,2]
[342121499,1731478232099,-22525.93685204,0.00014729,2]
[342121500,1731478232110,-480.402883,0.00014731,2]
[342121501,1731478232119,-7963.36474435,0.00014732,2]
[342121502,1731478232315,-896.52,0.00014732,2]
[342121503,1731478232350,-590.16069176,0.00014732,2]
[342121504,1731478232362,-329.14260328,0.00014732,2]
[342121506,1731478232376,-300.0,0.00014732,2]
[342121508,1731478232387,-290.832,0.00014732,2]
[342121510,1731478232457,-2069.64228396,0.00014732,2]
[342121515,1731478238571,-2240.67788628,0.00014732,2]
[342121516,1731478238583,-3974.24748192,0.00014733,2]
[342121517,1731478238599,-358.33485164,0.00014733,2]
[342121520,1731478238613,-5275.00911855,0.00014733,2]
[342121521,1731478238628,-2724.56352432,0.00014733,2]
[342121522,1731478238642,-478.31959918,0.00014733,2]
[342121523,1731478238860,-1869.86563402,0.00014733,2]
[342121524,1731478238872,-15456.86228599,0.00014734,2]
[342121525,1731478238887,-320.26904496,0.00014734,2]
[342121526,1731478238900,-566.76354058,0.00014734,2]
[342121527,1731478238915,-2204.92451438,0.00014734,2]
[342121528,1731478238967,-540.65357155,0.00014734,2]
[342121529,1731478238982,-264.24,0.00014734,2]
[342121530,1731478239043,-4392.91305409,0.00014734,2]
[342121531,1731478239111,-581246.16999057,0.00014734,2]
[342121532,1731478239123,-604992.79600212,0.00014737,2]
[342121533,1731478239135,-327.31178194,0.0001474,2]
[342121534,1731478239147,-604992.79600212,0.00014741,2]
[342121535,1731478239159,-116545.79888904,0.00014743,2]
[342121536,1731478239171,-480.402883,0.00014744,2]
[342121537,1731478239183,-327.31178194,0.00014748,2]
[342121538,1731478239194,-4946.00139899,0.0001475,2]
[342121539,1731478239206,-14680.34020963,0.00014754,2]
[342121540,1731478239218,-4946.00139899,0.00014754,2]
[342121541,1731478239230,-22525.93685204,0.00014756,2]
[342121542,1731478239244,-116545.79888904,0.00014758,2]
[342121543,1731478239256,-116545.79888904,0.00014765,2]
[342121544,1731478239269,-4946.00139899,0.00014765,2]
[342121545,1731478239281,-327.31178194,0.00014765,2]
[342121546,1731478239292,-480.402883,0.0001477,2]
[342121547,1731478239304,-326.67396034,0.00014773,2]
[342121548,1731478239316,-116545.79888904,0.00014773,2]
[342121549,1731478239328,-4946.00139899,0.00014773,2]
[342121550,1731478239340,-116545.79888904,0.00014774,2]
[342121551,1731478239352,-22525.93685204,0.00014776,2]
[342121552,1731478239364,-604992.79600212,0.00014782,2]
[342121553,1731478239376,-14680.34020963,0.00014783,2]
[342121554,1731478239389,-22525.93685204,0.00014785,2]
[342121555,1731478239400,-327.31178194,0.00014787,2]
[342121556,1731478239411,-300.0,0.00014789,2]
[342121557,1731478239424,-480.402883,0.0001479,2]
[342121558,1731478239436,-480.402883,0.0001479,2]
[342121559,1731478239448,-12602.811,0.0001479,2]
[342121560,1731478239460,-327.31178194,0.00014791,2]
[342121561,1731478239472,-4946.00139899,0.00014796,2]
[342121562,1731478239484,-192429.69067176,0.00014799,2]
[342121563,1731478239501,-1002.10843179,0.00014799,2]
[342121564,1731478239515,-882.78016148,0.00014799,2]
[342121565,1731478239530,-9455.58307413,0.00014799,2]
[342121566,1731478239544,-586.1594928,0.00014799,2]
[342121567,1731478239558,-721.52433466,0.00014799,2]
[342121568,1731478239572,-1016.61,0.00014799,2]
[342121569,1731478239587,-1629.6600002,0.00014799,2]
[342121576,1731478240713,-787.6938721,0.00014799,2]
[342121577,1731478240725,-429.15446819,0.00014799,2]
[342121578,1731478241383,-330.02005219,0.00014799,2]
[342121579,1731478241395,-4883.87071231,0.00014799,2]
[342121580,1731478241405,-388.8658327,0.00014799,2]
[342121581,1731478241418,-668.235384,0.00014799,2]
[342121582,1731478241429,-1809.76477321,0.00014799,2]
[342121583,1731478241440,-1202.0294286,0.00014799,2]
[342121586,1731478243130,-330.5,0.00014799,2]
[342121587,1731478243142,-350.61933059,0.00014799,2]
[342121589,1731478243434,-22.75453562,0.00014799,2]
[342121590,1731478243446,-2285.82171714,0.00014799,2]
[342121593,1731478246012,-780.143,0.00014799,2]
[342121594,1731478246185,-3460.76994827,0.00014799,2]
[342121595,1731478246197,-17360.9,0.00014799,2]
[342121596,1731478246211,-529.99465423,0.00014799,2]
[342121597,1731478246224,-361647.54212615,0.00014799,2]
[342121598,1731478246236,-166.97783484,0.0001489,2]
[342121599,1731478246250,-5879.62263055,0.0001489,2]
[342121600,1731478246262,-166.97783478,0.00014891,2]
[342121601,1731478246272,-166.97783478,0.00014893,2]
[342121602,1731478246283,-166.97783478,0.00014894,2]
[342121603,1731478246294,-166.97783478,0.00014896,2]
[342121604,1731478246304,-166.97783478,0.00014897,2]
[342121605,1731478246314,-166.97783478,0.00014899,2]
[342121606,1731478246324,-500.0,0.000149,2]
[342121607,1731478246334,-939.0372,0.000149,2]
[342121608,1731478246344,-1350.797,0.000149,2]
[342121609,1731478246354,-200.0,0.000149,2]
[342121610,1731478246364,-172.53905098,0.000149,2]
[342121611,1731478246376,-151.59,0.000149,2]
[342121612,1731478246389,-157.84230743,0.000149,2]
[342121613,1731478246399,-526.0,0.000149,3]
[342121614,1731478246408,-1000.0,0.000149,2]
[342121615,1731478246419,-1000.0,0.000149,2]
[342121616,1731478246429,-1000.0,0.000149,2]
[342121617,1731478246439,-166.97783478,0.000149,2]
[342121618,1731478246449,-308.55144334,0.000149,2]
[342121619,1731478246461,-157.748,0.0001492,2]
[342121620,1731478246472,-502.46337783,0.00014973,2]
[342121621,1731478246482,-323.33690313,0.00014973,2]
[342121622,1731478246495,-500.0,0.00014973,2]
[342121623,1731478246505,-150.0,0.0001498,2]
[342121624,1731478246515,-213.79,0.0001498,3]
[342121625,1731478246525,-13631.0,0.00014983,2]
[342121626,1731478246535,-1159.0,0.00014983,2]
[342121627,1731478246546,-150.0,0.00014983,2]
[342121628,1731478246556,-219.046,0.00014983,2]
[342121629,1731478246566,-252.69397826,0.00014988,2]
[342121630,1731478246577,-2562.4529415,0.00014988,2]
[342121631,1731478246588,-943.9134443,0.00014988,2]
[342121632,1731478246598,-1000.0,0.0001499,2]
[342121633,1731478246608,-1000.0,0.0001499,2]
[342121634,1731478246618,-1000.0,0.0001499,2]
[342121635,1731478246628,-1000.0,0.0001499,2]
[342121636,1731478246638,-636.0,0.0001499,3]
[342121637,1731478246648,-1000.0,0.0001499,3]
[342121638,1731478246658,-1000.0,0.0001499,3]
[342121639,1731478246668,-1000.0,0.0001499,2]
[342121640,1731478246679,-1000.0,0.0001499,2]
[342121641,1731478246689,-1000.0,0.0001499,2]
[342121642,1731478246699,-1000.0,0.0001499,3]
[342121643,1731478246710,-250000.0,0.0001499,2]
[342121644,1731478246721,-2205.3859944,0.0001499,2]
[342121645,1731478246732,-1848.3190473,0.0001499,2]
[342121646,1731478246743,-1491.2521002,0.0001499,2]
[342121647,1731478246753,-1134.1851531,0.0001499,2]
[342121648,1731478246762,-812.3831101,0.0001499,2]
[342121649,1731478246772,-680.8527758,0.0001499,2]
[342121650,1731478246783,-549.3224416,0.0001499,2]
[342121651,1731478246793,-417.7921073,0.0001499,2]
[342121652,1731478246803,-150.0,0.00014998,2]
[342121653,1731478246813,-150.0,0.00014998,2]
[342121654,1731478246823,-150.0,0.00014998,2]
[342121655,1731478246833,-150.0,0.00014998,2]
[342121656,1731478246843,-150.0,0.00014998,2]
[342121657,1731478246854,-150.0,0.00014998,2]
[342121658,1731478246864,-150.0,0.00014998,2]
[342121659,1731478246874,-150.0,0.00014998,2]
[342121660,1731478246883,-150.0,0.00014998,2]
[342121661,1731478246893,-150.0,0.00014998,2]
[342121662,1731478246904,-150.0,0.00014998,2]
[342121663,1731478246914,-150.0,0.00014998,2]
[342121664,1731478246924,-150.0,0.00014998,2]
[342121665,1731478246934,-150.0,0.00014998,2]
[342121666,1731478246944,-150.0,0.00014998,2]
[342121667,1731478246954,-150.0,0.00014998,2]
[342121668,1731478246966,-150.0,0.00014998,2]
[342121669,1731478246976,-150.0,0.00014998,2]
[342121670,1731478246986,-150.0,0.00014998,2]
[342121671,1731478246997,-500.0,0.00014999,2]
[342121672,1731478247006,-412.55033761,0.00014999,2]
[342121673,1731478247016,-238.92767656,0.00014999,2]
[342121674,1731478247026,-271.76472322,0.00014999,2]
[342121675,1731478247035,-151.94517687,0.00014999,2]
[342121676,1731478247045,-1153.93,0.00014999,2]
[342121677,1731478247056,-500.0,0.00014999,2]
[342121678,1731478247067,-342.22118456,0.00014999,2]
[342121679,1731478247077,-690.302,0.00014999,2]
[342121680,1731478247088,-512.74,0.00014999,2]
[342121681,1731478247098,-1000.0,0.00014999,2]
[342121682,1731478247108,-1000.0,0.00014999,2]
[342121683,1731478247118,-1000.0,0.00014999,2]
[342121684,1731478247127,-1000.0,0.00014999,2]
[342121685,1731478247137,-1000.0,0.00014999,2]
[342121686,1731478247146,-1000.0,0.00014999,2]
[342121687,1731478247156,-1000.0,0.00014999,2]
[342121688,1731478247165,-1000.0,0.00014999,2]
[342121689,1731478247174,-539.02,0.00014999,2]
[342121690,1731478247184,-269235.74218505,0.00015,2]
[342121691,1731478248233,-3246.75,0.00015,2]
[342121692,1731478359713,1450.0,0.00012,2]
[342121695,1731478399366,469.89,0.00012543,2]
[342121697,1731478838485,36679.0,0.00027,60]
[342121698,1731478999856,500.0,0.00026212,120]
[342121699,1731479008402,2625.69,0.00027,60]
[342121705,1731479280183,446.39,0.00011762,2]
[342121711,1731479374588,1047.33524147,0.00027,60]
[342121718,1731479397738,1000.00000001,0.00027,60]
[342121721,1731479412667,2000.0,0.000165,27]
[342121722,1731479427804,2000.0,0.00021,30]
[342121723,1731479431057,2000.0,0.00021,30]
[342121724,1731479431130,2000.0,0.00027,60]
[342121738,1731479432123,-592.05416991,0.000129,2]
[342121739,1731479432132,-18241.31467509,0.00013,2]
[342121740,1731479432145,-20145.92573461,0.00013,2]
[342121744,1731479432355,-3078.7145997,0.00013,2]
[342121745,1731479432366,-442.45097631,0.00013,2]
[342121746,1731479432404,-567.54573296,0.00013,2]
[342121747,1731479432416,-2313.41881495,0.00013,2]
[342121748,1731479432518,-19100.86288101,0.00013,2]
[342121768,1731479438935,-3256.0537303,0.00013,2]
[342121769,1731479438946,-3151.3,0.00013,2]
[342121770,1731479438983,-2592.68903037,0.00013,2]
[342121771,1731479438993,-592.08569065,0.00013,2]
[342121772,1731479439129,-1795.9668671,0.00013,2]
[342121773,1731479439141,-1345.48638074,0.00013,2]
[342121774,1731479439199,-664.49215407,0.00013,2]
[342121780,1731479440467,-454.25675803,0.00013,2]
[342121781,1731479440479,-826.5,0.00013,2]
[342121784,1731479440510,-348.15492,0.00013,2]
[342121785,1731479440521,-3206.4969001,0.00013,2]
[342121801,1731479440665,-3630.0000005,0.00013,2]
[342121802,1731479440675,-558.11444011,0.00013,2]
[342121803,1731479440803,-1571.95,0.00013,2]
[342121814,1731479443716,-4215.07620331,0.00013,2]
[342121816,1731479443725,-1735.05499635,0.00013515,2]
[342121818,1731479443740,-890.46500365,0.00013515,2]
[342121820,1731479443749,-250.0,0.0001363,2]
[342121821,1731479443758,-333.65,0.00013671,2]
[342121822,1731479443767,-250.0,0.00013713,2]
[342121824,1731479443777,-1004.47,0.00013879,2]
[342121825,1731479443785,-47.91489635,0.00013911,2]
[342121826,1731479443813,-170.36510365,0.00013911,2]
[342121827,1731479443822,-171.55,0.00013973,2]
[342121828,1731479443831,-354.11965517,0.00014,2]
[342121829,1731479443842,-1145.88034483,0.00014,2]
[342121830,1731479443855,-500.0,0.00014,2]
[342121831,1731479443865,-500.0,0.00014,2]
[342121832,1731479443874,-500.0,0.00014,2]
[342121833,1731479443883,-500.0,0.00014,2]
[342121834,1731479443892,-500.0,0.00014,2]
[342121835,1731479443902,-500.0,0.00014,2]
[342121836,1731479443911,-500.0,0.00014,2]
[342121837,1731479443920,-500.0,0.00014,2]
[342121838,1731479443930,-500.0,0.00014,2]
[342121839,1731479443938,-500.0,0.00014,2]
[342121840,1731479443948,-500.0,0.00014,2]
[342121841,1731479443956,-500.0,0.00014,2]
[342121842,1731479443965,-500.0,0.00014,2]
[342121843,1731479443975,-360.04353515,0.00014,2]
[342121845,1731479446610,-139.95646485,0.00014,2]
[342121846,1731479446620,-500.0,0.00014,2]
[342121847,1731479446630,-524.18,0.00014,2]
[342121848,1731479446641,-500.0,0.00014,2]
[342121849,1731479446651,-500.0,0.00014,2]
[342121850,1731479446661,-500.0,0.00014,2]